Cogmind - Beta 10.2 @@@ ROGUE MODE // 2021.05.20 @ 03:56:22 Player: RavenousxxxDemon Result: Destroyed by G-34 Mercenary with Small Laser Performance ------------- Evolutions (0) 0 Regions Visited (1) 200 Robots Destroyed (9) 45 Value Destroyed (103) 103 Prototype IDs (0) 0 Alien Tech Used (0) 0 Bonus (0) 0 TOTAL SCORE: 348 Bonus ------- None Cogmind --------- Core Integrity 0/250 Matter 249/300 Energy 68/250 System Corruption 0% Temperature Cool (30) Movement Rolling (100) Ox2 Location -10/Materials Parts ------- > --- POWER (1) -------- Ion Engine > --- PROPULSION (2) --- Wheel > --- UTILITY (2) ------ Large Storage Unit Propulsion Shielding > --- WEAPON (2) ------- Small Laser Welding Torch > --- INVENTORY (10) --- Aluminum Leg Large Storage Unit Peak State ------------ > --- POWER ------------ Light Ion Engine > --- PROPULSION ------- Wheel Wheel > --- UTILITY ---------- Small Storage Unit Propulsion Shielding > --- WEAPON ----------- Medium Laser Small Laser > --- INVENTORY -------- Ion Engine Aluminum Leg Small Laser Light Assault Rifle [Rating: 7] Favorites ----------- Power Light Ion Engine Engine Light Ion Engine Propulsion Wheel Wheel Wheel Utility Small Storage Unit Storage Small Storage Unit Protection Propulsion Shielding Weapon Medium Laser Energy Gun Medium Laser Ballistic Gun Light Assault Rifle Special Weapon Welding Torch Build | -11 -10 ------- Run | Scr Mat Slots Evolved . | . . Power . | . . Propulsion . | . . Utility . | . . Weapon . | . . Parts Attached 13 | 5 8 Power 2 | 1 1 Engine 2 | 1 1 Core . | . . Reactor . | . . Propulsion 3 | 2 1 Treads . | . . Leg . | . . Wheel 3 | 2 1 Hover . | . . Flight . | . . Utility 3 | 1 2 Device . | . . Storage 2 | 1 1 Processor . | . . Hackware . | . . Protection 1 | . 1 Artifact . | . . Weapon 5 | 1 4 Energy Gun 3 | 1 2 Energy Cannon . | . . Ballistic Gun 1 | . 1 Ballistic Cannon . | . . Launcher . | . . Special Weapon 1 | . 1 Impact Weapon . | . . Slashing Weapon . | . . Piercing Weapon . | . . Special Melee Weapon . | . . Unidentified Prototypes . | . . Parts Lost 5 | . 5 Power 1 | . 1 Propulsion 1 | . 1 Utility . | . . Weapon 3 | . 3 Highest Loss Streak 5 | . 5 Average Slot Usage (%) 89 | . 89 Engine 13 | . 13 Wheel 26 | . 26 Storage 14 | . 14 Protection 7 | . 7 Energy Gun 24 | . 24 Ballistic Gun 1 | . 1 Naked Turns . | . . Heaviest Build 23 | 9 23 Greatest Support 20 | 20 20 Greatest Overweight (x) 2 | . 2 Average Overweight (x) . | . . Largest Inventory Capacity 10 | 6 10 Average Capacity 7 | 5 7 Most Carried 6 | 6 5 Average Carried 3 | 3 3 Final Capacity 10 | 6 10 Final Carried 4 | 4 2 Class Distribution -------------------- 100% | Mutant Dominant Class ---------------- Mutant | -10/Materials Resources | -11 -10 ----------- Run | Scr Mat Matter Collected 268 | 127 141 Remotely . | . . Salvage Created 190 | . 190 Parts 26 | . 26 Haulers Intercepted . | . . Recyclers Shooed . | . . Parts Field Recycled . | . . Retrieved Matter . | . . Parts Self-Destructed . | . . Prevented . | . . Kills | -11 -10 ------- Run | Scr Mat Combat Hostiles Destroyed 5 | . 5 Guns 5 | . 5 Classes Destroyed 6 | . 6 Worker 1 | . 1 Builder 1 | . 1 Tunneler 1 | . 1 Watcher 1 | . 1 Swarmer 4 | . 4 Grunt 1 | . 1 Best Kill Streak 6 | . 6 Combat Bots Only 3 | . 3 Max Kills in Single Turn 1 | . 1 Gunslinging . | . . Exploded . | . . Melee . | . . Uniques/NPCs Destroyed . | . . Combat | -11 -10 -------- Run | Scr Mat Damage Taken 706 | . 706 Core 252 | . 252 Absorbed by Shields . | . . Core Remaining (%) 100 | 100 . Volleys Fired 34 | . 34 Largest 2 | . 2 Hottest 90 | . 90 Shots Fired 56 | . 56 Gun 54 | . 54 Cannon . | . . Launcher . | . . Special 2 | . 2 Kinetic 14 | . 14 Thermal 42 | . 42 Explosive . | . . Electromagnetic . | . . Robot Hit Streak 4 | . 4 Robot Miss Streak 4 | . 4 Penetration Max . | . . Secondary Targets . | . . Shots Hit Robots 26 | . 26 Core Hits 11 | . 11 Critical Hits . | . . Critical Kills . | . . Critical Parts Destroyed . | . . Melee Attacks . | . . Impact . | . . Slashing . | . . Piercing . | . . Sneak Attacks . | . . Combat Hostiles . | . . Follow-up Attacks . | . . Damage Inflicted 266 | . 266 Guns 264 | . 264 Cannons . | . . Explosions . | . . Melee . | . . Ramming . | . . Kinetic 72 | . 72 Thermal 194 | . 194 Explosive . | . . Electromagnetic . | . . Impact . | . . Slashing . | . . Piercing . | . . Highest Corruption . | . . Average Corruption . | . . Corruption Purged . | . . Overload Shots . | . . Overflow Damage . | . . Projectiles . | . . Explosions . | . . Melee . | . . Knockbacks . | . . Impact . | . . Kinetic . | . . Secondary . | . . Self-Inflicted Damage . | . . Shots . | . . Rammed . | . . Targets Rammed . | . . Kicked . | . . Crushed . | . . Highest Temperature 194 | . 194 Average Temperature 77 | . 77 Received Heat Transfer 216 | . 216 Siege Activations . | . . Robots Corrupted . | . . Combat Hostiles . | . . Parts Fried . | . . Impact Corruptions . | . . Robots Melted . | . . Combat Hostiles . | . . Parts Melted . | . . Heat Transferred 533 | . 533 Parts Sabotaged . | . . Parts Stolen . | . . Parts Stripped . | . . Power Chain Reactions . | . . Missiles Intercepted . | . . Alert | -11 -10 ------- Run | Scr Mat Peak Influence 152 | . 152 Initial . | . . Average 69 | . 84 Maximum Alert Level . | . . Low Security (%) 100 | 100 100 Level 1 . | . . Level 2 . | . . Level 3 . | . . Level 4 . | . . Level 5 . | . . High Security . | . . Max Security . | . . Squads Dispatched 1 | . 1 Investigation 1 | . 1 Extermination . | . . Reinforcement . | . . Assault . | . . Garrison . | . . Intercept . | . . Construction Impeded . | . . Haulers Reinforced . | . . Stealth | -11 -10 --------- Run | Scr Mat Distress Signals . | . . Communications Jammed . | . . Distress Signals . | . . Times Spotted 11 | . 11 Peak Tracking Total 6 | . 6 Tactical Retreats . | . . Traps | -11 -10 ------- Run | Scr Mat Traps Triggered 1 | . 1 Indirectly . | . . Trap Hack Attempts . | . . Triggered . | . . Disarmed . | . . Reprogrammed . | . . Reused . | . . Traps Extracted . | . . Installed . | . . Triggered . | . . Machines | -11 -10 ---------- Run | Scr Mat Machines Disabled . | . . Max in Single Turn . | . . Machines Sabotaged . | . . Garrisons Compromised . | . . Overloaded Fab Kills . | . . Fab Network Shutdowns . | . . Hacking | -11 -10 --------- Run | Scr Mat Machines Accessed . | . . Terminals . | . . Fabricators . | . . Repair Stations . | . . Recycling Units . | . . Scanalyzers . | . . Garrison Access . | . . Total Hacks . | . . Successful . | . . Failed . | . . Catastrophic . | . . Database Lockouts . | . . Manual . | . . Terminals . | . . Fabricators . | . . Repair Stations . | . . Recycling Units . | . . Scanalyzers . | . . Garrison Access . | . . Terminal Hacks . | . . Fabricator Hacks . | . . Repair Station Hacks . | . . Recycling Unit Hacks . | . . Scanalyzer . | . . Garrison Access Hacks . | . . Unauthorized Hacks . | . . Terminals . | . . Fabricators . | . . Repair Stations . | . . Recycling Units . | . . Scanalyzers . | . . Garrison Access . | . . Data Cores Recovered . | . . Used . | . . Hacking Detections . | . . Full Trace Events . | . . Feedback Events . | . . Feedback Blocked . | . . Robot Schematics Acquired . | . . Robots Built . | . . Matter . | . . Time . | . . Total Robot Build Rating . | . . Part Schematics Acquired . | . . Parts Built . | . . Matter . | . . Time . | . . Total Part Build Rating . | . . Parts Repaired . | . . Time . | . . Parts Recycled . | . . Recycled Matter . | . . Retrieved Matter . | . . Retrieved Components . | . . Parts Scanalyzed . | . . Part Schematics Acquired . | . . Parts Damaged . | . . Bothacking | -11 -10 ------------ Run | Scr Mat Used RIF Installer . | . . Robots Hacked . | . . Non-combat . | . . Combat . | . . Robot Hacks Applied . | . . Relay Couplers Released . | . . Robots Rewired . | . . Allies Hacked . | . . Hacks Repelled . | . . Allies | -11 -10 -------- Run | Scr Mat Total Allies . | . . Largest Group . | . . Highest-Rated Group . | . . Highest-Rated Ally . | . . Total Orders . | . . Ally Attacks . | . . Total Damage . | . . Kills . | . . Allies Corrupted . | . . Allies Melted . | . . Intel | -11 -10 ------- Run | Scr Mat Robot Analysis Total . | . . Derelict Logs Recovered . | . . Drone Launches . | . . Drone Recoveries . | . . Exploration | -11 -10 ------------- Run | Scr Mat Turns Passed 274 | 50 224 Spaces Moved 198 | 47 151 Core 3 | 3 . Treads . | . . Legs . | . . Wheels 195 | 44 151 Hover . | . . Flight . | . . Fastest Speed 50 | 50 80 Average Speed 80 | 78 81 Slowest Speed 100 | 80 100 Overloaded Moves . | . . Propulsion Burnouts . | . . Robots Hopped . | . . Cave-ins Triggered . | . . Exploration Rate (%) 14 | 3 26 Regions Visited 1 Branch Regions . Pre-discovered Areas . | . . Known Exits Taken . | . . Unknown Exits Taken 1 | 1 . Scrap Searched . | . . Spaces Dug . | . . Terrain Destroyed . | . . Melee . | . . Projectile . | . . AOE . | . . Terrain Rammed . | . . Walls Destroyed . | . . Machines Disabled . | . . Actions | -11 -10 --------- Run | Scr Mat Total 261 | 60 201 Wait . | . . Move 197 | 46 151 Hop . | . . Pick Up 15 | 9 6 Fast Attach . | . . Attach 12 | 5 7 Detach . | . . Swap 1 | . 1 Drop 2 | . 2 Fire 34 | . 34 Melee . | . . Ram . | . . Kick . | . . Crush . | . . Escape Stasis . | . . Rewire . | . . Trap . | . . Miscellaneous . | . . Route ------- -11/Scrapyard -10/Materials (discovered 1 exit: [*Min]) History --------- Turn | Location | Event 17 | -11/Scrapyard | Discovered new exit (range 16) 51 | -11/Scrapyard | Entered Materials 140 | -10/Materials | Discovered new exit (range 14) 246 | -10/Materials | Core integrity fell below 50% 263 | -10/Materials | Core integrity fell below 20% 275 | -10/Materials | Destroyed by G-34 Mercenary with Small Laser Last Messages --------------- 00235_ U-05 Engineer lays Concrete. 00236_ K-01 Serf collects debris. 00237_ U-05 Engineer lays Concrete. 00239_ K-01 Serf collects debris. 00241_ S-10 Pest destroyed. 00242_ K-01 Serf collects debris. 00243_ Med. Laser destroyed. 00246_ K-01 Serf collects debris. 00247_ U-05 Engineer destroyed. 00249_ K-01 Serf collects debris. 00251_ G-34 Mercenary destroyed. 00252_ Acquired 45 matter. 00252_ R-06 Scavenger collects Lgt. Ion Engine. 00252_ K-01 Serf collects debris. 00255_ R-06 Scavenger collects Flight Unit. 00255_ Lgt. Ion Engine destroyed. 00255_ Wheel destroyed. 00258_ K-01 Serf collects debris. 00265_ Lgt. Assault Rifle destroyed. 00269_ Acquired Welding Torch. Map ----- +----------------------------------------------------+ | ?????????????????????????????????????????????????? | | ?????????????????????????????????????????????????? | | ?????????????????????????????????????????????????? | | ?????????????????????????????????????????????????? | | ?????????????????????????????????????????????????? | | ?????????????????????????????????????????????????? | | ?????????????????????????????????????????????????? | | ?????????????????????????????????????????????????? | | ????????????????????????????????#????????????????? | | ??????????????????????????????? #????????????????? | | ??????????????????????????????? ##???????????????? | | ???????############???????????? ???????????????? | | ???????# #########???? ????????????????? | | ???????# ???? ????????????????? | | ???????# #??????????? #????????????????? | | ???????# ##### ##??????????? #????????????????? | | ???????# #???# #????????????* #????????????????? | | ???????# #???# #?####?????? % #????????????????? | | ???????# #???# ###!!#?????? #????????????????? | | ???????# #???# ##! #?????? #????????????????? | | ???????# #???# ##! #????## a##???????????????? | | ???????# #???# ## ###### #???????????????? | | ???????# #???# ##! ######??????????? | | ???????# #???# ###!! u=g ??????? | | ???????# #???# #?#### g%[ ########????????? | | ???##### #???# ######!s@## #???????????????? | | ???# #???# ##%! ## ###???????????????? | | ???# #???# ## #?????????????????? | | ???# #???# ## #?????????????????? | | ???############# ## #?????????????????? | | ???????# !# ### ### ?????????????????? | | ???????# "" ## ####+##? ##????????????????? | | ???????# "T T# # #? #?????????????????? | | ???????? "" ## !# #? #?????????????????? | | ?????????? ?#[ !# """ #? #?????????????????? | | ############+####|* # """ #? #?????????????????? | | + =%!*!=# """ #? #?????????????????? | | ##### *[*= + #? ?????????????????? | | ##??# = # """ #??????????????????????? | | "#??# ####### ### """ #??????????????????????? | | "#??# #????# ## """ #??????????????????????? | | "#??# #????# ## #??????????????????????? | | T#??# #????###### #??????????????????????? | | "#??# #?????????#######??????????????????????? | | "#??# #??????????????????????????????????????? | | "#?## ##?????????????????????????????????????? | | #### ##????????????????????????????????????? | | #?# #????????????????????????????????????? | | +##?# #????????????????????????????????????? | | #### < #????????????????????????????????????? | +----------------------------------------------------+ Best States ------------- Heat Dissipation 25 Energy Generation 10 Energy Capacity 250 Matter Stores 277 Matter Capacity 300 Sight Range 16 Terrain Scan Density 10 Propulsion Shielding 33 Evasion (%) 44 Item Schematics ----------------- None Robot Schematics ------------------ None Fabricated ------------ Nothing Alien Tech Used ----------------- None Achievements -------------- None Challenges ------------ None Game ------ Seed NuclearBiometalCoupler Manual? 0 Play Time 00:06:59 Cumulative 4.2 hours Start 2021.05.20 @ 03:51:33 End 2021.05.20 @ 03:56:22 Sessions 1 Manual Loads 0 Difficulty Rogue Special Mode None Game No. 8 Rogue 8 Adventurer 0 Explorer 0 Win Type - Total 0 Types 0/0/0/0/0/0/0/0/0 Lore% 2 Gallery% 9 Achievement% 10 Wizard Run 0 Options --------- ASCII 0 Keyboard 0 Movement Mouse Keybinds 0 Fullscreen 1 Font 18/SmallcapsGlow Map View 76x50 Tactical HUD 1 Map Filters NONE Filters NONE Steam 1 RUN: 98a1952e-b0c8-4bed-8900-01428a4af55f